[Event "Satka Autumn 2019"]
[Site "Satka"]
[Date "2019.09.20"]
[Round "2.8"]
[White "Voskresenskaya, Marta"]
[Black "Petrenko, Svetlana"]
[Result "1/2-1/2"]
[ECO "D58"]
[WhiteElo "1907"]
[BlackElo "2200"]
[Annotator "NA"]
[PlyCount "120"]
[EventDate "2019.09.19"]
[EventType "swiss"]
[EventCountry "RUS"]
[SourceTitle "playchess.com"]
[Source "ChessBase"]
[SourceQuality "1"]
[TimeControl "5400+30"]

1. d4 {[%emt 0:00:00]} d5 {[%emt 0:00:00]} 2. Nf3 {[%emt 0:00:00]} Nf6 {[%emt 0:00:17]} 3. c4 {[%emt 0:00:00]} e6 {[%emt 0:00:16]} 4. Nc3 {[%emt 0:00:00]} Be7 {[%emt 0:00:39]} 5. Bg5 {[%emt 0:00:00]} O-O {[%emt 0:00:33]} 6. e3 {[%emt 0:00:26]} h6 {[%emt 0:03:29]} 7. Bh4 {[%emt 0:00:06]} b6 {[%emt 0:00:49]} 8. cxd5 {[%emt 0:00:15]} exd5 {[%emt 0:00:41]} 9. Bd3 {[%emt 0:00:20]} Bb7 {[%emt 0:00:19]} 10. O-O {[%emt 0:00:19]} Nbd7 {[%emt 0:03:18]} 11. Qe2 {[%emt 0:00:51]} a6 {[%emt 0:07:59]} 12. Rac1 {[%emt 0:04:54]} b5 13. a3 {[%emt 0:05:31]} c5 {[%emt 0:10:08]} 14. dxc5 {[%emt 0:06:56]} Nxc5 {[%emt 0:00:25]} 15. Bf5 {[%emt 0:01:46]} g6 {[%emt 0:10:30]} 16. Bb1 {[%emt 0:10:32]} Nfe4 {[%emt 0:02:27]} 17. Bxe7 {[%emt 0:00:42]} Qxe7 {[%emt 0:00:09]} 18. Ba2 {[%emt 0:06:01]} Rfd8 {[%emt 0:03:20]} 19. Rfd1 {[%emt 0:01:21]} Nf6 {[%emt 0:10:11]} 20. Nd4 {[%emt 0:08:41]} Rac8 {[%emt 0:02:14]} 21. Rc2 {[%emt 0:15:20]} Rc7 {[%emt 0:08:39]} 22. Rdc1 {[%emt 0:06:33]} Rdc8 {[%emt 0:01:42]} 23. Qd1 {[%emt 0:12:23]} Nce4 {[%emt 0:18:24]} 24. Nxe4 {[%emt 0:05:05]} dxe4 {[%emt 0:00:54]} 25. Rxc7 {[%emt 0:06:28]} Rxc7 {[%emt 0:00:02]} 26. Rxc7 {[%emt 0:01:03]} Qxc7 {[%emt 0:00:06]} 27. Qc2 {[%emt 0:01:14]} Qd6 {[%emt 0:01:14]} 28. h3 Nd7 29. Qb3 {[%emt 0:04:53]} Ne5 {[%emt 0:10:11]} 30. Qc3 Nd3 {[%emt 0:01:41]} 31. Bb1 {[%emt 0:01:16]} Qc5 {[%emt 0:01:43]} 32. Qxc5 {[%emt 0:00:57]} Nxc5 {[%emt 0:00:59]} 33. Kf1 Na4 34. b4 {[%emt 0:01:58]} Bd5 {[%emt 0:01:49]} 35. Bc2 {[%emt 0:00:44]} Nb6 {[%emt 0:00:30]} 36. Ke1 {[%emt 0:00:37]} Kf8 {[%emt 0:00:54]} 37. Bb3 {[%emt 0:00:32]} Bxb3 {[%emt 0:00:35]} 38. Nxb3 {[%emt 0:00:02]} Nc4 {[%emt 0:00:08]} 39. Nc5 {[%emt 0:00:01]} Nxa3 {[%emt 0:00:16]} 40. Nxa6 {[%emt 0:00:00]} Ke7 {[%emt 0:00:00]} 41. Kd2 {[%emt 0:00:00]} Kd6 {[%emt 0:00:00]} 42. Kc3 {[%emt 0:00:00]} f5 {[%emt 0:00:00]} 43. Nc5 {[%emt 0:00:00]} Kd5 {[%emt 0:00:00]} 44. h4 {[%emt 0:00:00]} Nc4 {[%emt 0:00:00]} 45. Nb3 {[%emt 0:00:00]} Ne5 {[%emt 0:00:00]} 46. Nd4 {[%emt 0:00:00]} Ng4 {[%emt 0:00:00]} 47. Nxb5 {[%emt 0:00:00]} Nxf2 {[%emt 0:00:00]} 48. Nc7+ {[%emt 0:00:00]} Kd6 {[%emt 0:00:00]} 49. Nb5+ {[%emt 0:00:00]} Kc6 {[%emt 0:00:00]} 50. Nd4+ {[%emt 0:00:00]} Kd5 {[%emt 0:00:00]} 51. h5 {[%emt 0:00:00]} gxh5 {[%emt 0:00:00]} 52. Nxf5 {[%emt 0:00:00]} Nd1+ {[%emt 0:01:00]} 53. Kd2 {[%emt 0:01:19]} Nf2 {[%emt 0:02:24]} 54. Kc3 {[%emt 0:04:31]} Nd1+ {[%emt 0:00:36]} 55. Kd2 {[%emt 0:01:15]} Nb2 {[%emt 0:02:05]} 56. Ng3 {[%emt 0:01:28]} Nc4+ {[%emt 0:01:26]} 57. Ke2 {[%emt 0:00:35]} Nd6 {[%emt 0:01:02]} 58. Nxh5 {[%emt 0:00:36]} Kc4 {[%emt 0:00:37]} 59. Nf4 {[%emt 0:01:16]} Kxb4 {[%emt 0:00:39]} 60. Nd5+ {[%emt 0:00:43]} Kc4 {[%emt 0:00:52]} 1/2-1/2

[Event "Satka Autumn 2019"]
[Site "Satka"]
[Date "2019.09.20"]
[Round "2.9"]
[White "Schepetkova, Margarita"]
[Black "Mar, Karmen"]
[Result "0-1"]
[ECO "D11"]
[WhiteElo "2194"]
[BlackElo "2026"]
[Annotator "NA"]
[PlyCount "80"]
[EventDate "2019.09.19"]
[EventType "swiss"]
[EventCountry "RUS"]
[SourceTitle "playchess.com"]
[Source "ChessBase"]
[SourceQuality "1"]
[TimeControl "5400+30"]

1. d4 {[%emt 0:00:00]} d5 {[%emt 0:00:00]} 2. c4 {[%emt 0:00:00]} c6 {[%emt 0:00:00]} 3. Nf3 {[%emt 0:00:00]} Nf6 {[%emt 0:00:01]} 4. g3 {[%emt 0:00:05]} Bf5 {[%emt 0:00:30]} 5. Nc3 {[%emt 0:00:10]} e6 {[%emt 0:00:36]} 6. Nh4 {[%emt 0:02:09]} dxc4 {[%emt 0:01:20]} 7. Nxf5 {[%emt 0:05:04]} exf5 {[%emt 0:00:02]} 8. Bg2 {[%emt 0:01:31]} Nbd7 {[%emt 0:10:23]} 9. Qc2 g6 {[%emt 0:24:41]} 10. O-O {[%emt 0:12:17]} Nb6 {[%emt 0:03:04]} 11. e4 {[%emt 0:04:15]} Bg7 {[%emt 0:14:02]} 12. exf5 {[%emt 0:19:08]} O-O {[%emt 0:00:18]} 13. Bf4 {[%emt 0:01:11]} Nh5 {[%emt 0:10:36]} 14. Be3 {[%emt 0:01:21]} Qd7 {[%emt 0:03:17]} 15. g4 {[%emt 0:21:08]} Nf6 {[%emt 0:00:09]} 16. g5 {[%emt 0:00:04]} Ng4 {[%emt 0:01:11]} 17. f6 {[%emt 0:00:03]} Qd6 {[%emt 0:02:13]} 18. Rfe1 {[%emt 0:00:05]} Qxh2+ {[%emt 0:01:06]} 19. Kf1 {[%emt 0:00:04]} Bh8 {[%emt 0:05:55]} 20. Bc1 {[%emt 0:05:22]} Rfe8 {[%emt 0:04:08]} 21. Re4 {[%emt 0:03:02]} Qh5 {[%emt 0:04:51]} 22. Qe2 {[%emt 0:14:13]} Rxe4 {[%emt 0:00:04]} 23. Qxe4 {[%emt 0:00:22]} h6 {[%emt 0:01:39]} 24. f3 {[%emt 0:06:12]} Nh2+ {[%emt 0:00:38]} 25. Kg1 {[%emt 0:00:03]} hxg5 {[%emt 0:00:29]} 26. Ne2 {[%emt 0:00:11]} Bxf6 {[%emt 0:01:45]} 27. Be3 {[%emt 0:03:34]} Kf8 {[%emt 0:04:24]} 28. Ng3 {[%emt 0:00:07]} Qh8 {[%emt 0:01:50]} 29. Bf2 {[%emt 0:00:01]} Re8 {[%emt 0:00:14]} 30. Qc2 {[%emt 0:00:02]} g4 {[%emt 0:00:30]} 31. f4 {[%emt 0:01:32]} Nf3+ {[%emt 0:00:27]} 32. Bxf3 {[%emt 0:00:02]} gxf3 {[%emt 0:00:02]} 33. Qc3 {[%emt 0:00:01]} Nd5 {[%emt 0:01:53]} 34. Qxf3 {[%emt 0:00:27]} Bxd4 {[%emt 0:00:14]} 35. Rd1 {[%emt 0:00:25]} Bxf2+ {[%emt 0:01:01]} 36. Qxf2 {[%emt 0:00:01]} Qh3 {[%emt 0:01:39]} 37. Rd4 {[%emt 0:01:21]} Re3 {[%emt 0:00:36]} 38. Nf1 {[%emt 0:00:21]} Qg4+ {[%emt 0:00:54]} 39. Kh1 {[%emt 0:00:06]} Re2 {[%emt 0:01:05]} 40. Qg3 {[%emt 0:00:00]} Qxg3 {[%emt 0:00:00]} 0-1

[Event "Satka Autumn 2019"]
[Site "Satka"]
[Date "2019.09.20"]
[Round "2.10"]
[White "Dubovikova, Rada"]
[Black "Nosacheva, Mariya"]
[Result "0-1"]
[ECO "B40"]
[WhiteElo "1096"]
[BlackElo "2193"]
[Annotator "NA"]
[PlyCount "30"]
[EventDate "2019.09.19"]
[EventType "swiss"]
[EventCountry "RUS"]
[SourceTitle "playchess.com"]
[Source "ChessBase"]
[SourceQuality "1"]
[TimeControl "5400+30"]

1. e4 {[%emt 0:00:00]} c5 {[%emt 0:00:00]} 2. Nf3 {[%emt 0:00:00]} e6 {[%emt 0:00:00]} 3. Bc4 {[%emt 0:01:15]} a6 {[%emt 0:00:16]} 4. a4 {[%emt 0:01:15]} Nc6 {[%emt 0:04:16]} 5. O-O {[%emt 0:04:30]} Qc7 {[%emt 0:02:17]} 6. b3 {[%emt 0:03:43]} Nf6 {[%emt 0:00:59]} 7. Nc3 {[%emt 0:00:29]} Nd4 {[%emt 0:06:20]} 8. Bb2 h5 {[%emt 0:14:44]} 9. Re1 {[%emt 0:10:45]} Qf4 {[%emt 0:01:03]} 10. e5 {[%emt 0:02:46]} Ng4 {[%emt 0:00:34]} 11. h3 {[%emt 0:03:07]} b5 {[%emt 0:07:39]} 12. axb5 {[%emt 0:03:11]} Bb7 {[%emt 0:00:13]} 13. Be2 {[%emt 0:07:38]} Bxf3 {[%emt 0:00:35]} 14. Bxf3 {[%emt 0:00:19]} Qh2+ {[%emt 0:00:05]} 15. Kf1 {[%emt 0:00:53]} Qh1# {[%emt 0:00:06] Bc1 Qh2} 0-1

[Event "Satka Autumn 2019"]
[Site "Satka"]
[Date "2019.09.20"]
[Round "2.11"]
[White "Petrukhina, Olga"]
[Black "Mirzaeva, Gulnara"]
[Result "1-0"]
[ECO "A06"]
[WhiteElo "2192"]
[BlackElo "1936"]
[Annotator "NA"]
[PlyCount "75"]
[EventDate "2019.09.19"]
[EventType "swiss"]
[EventCountry "RUS"]
[SourceTitle "playchess.com"]
[Source "ChessBase"]
[SourceQuality "1"]
[TimeControl "5400+30"]

1. Nf3 {[%emt 0:00:00]} d5 {[%emt 0:00:00]} 2. g3 {[%emt 0:00:00]} e6 {[%emt 0:01:25]} 3. Bg2 {[%emt 0:00:00]} Nf6 {[%emt 0:01:12]} 4. O-O {[%emt 0:00:00]} c5 {[%emt 0:01:13]} 5. c4 {[%emt 0:02:24]} dxc4 {[%emt 0:01:00]} 6. Na3 {[%emt 0:00:39]} Nc6 {[%emt 0:02:32]} 7. Nxc4 {[%emt 0:00:11]} Bd7 {[%emt 0:07:39]} 8. b3 b5 {[%emt 0:05:21]} 9. Nce5 {[%emt 0:16:14]} Rc8 {[%emt 0:02:26]} 10. Bb2 {[%emt 0:01:01]} Bd6 {[%emt 0:09:43]} 11. Nxd7 {[%emt 0:01:53]} Qxd7 {[%emt 0:00:24]} 12. d4 {[%emt 0:19:02]} c4 {[%emt 0:10:56]} 13. d5 {[%emt 0:19:34]} Nxd5 {[%emt 0:07:09]} 14. e4 {[%emt 0:04:05]} Nb6 {[%emt 0:01:54]} 15. Bxg7 {[%emt 0:01:12]} Rg8 {[%emt 0:00:30]} 16. Bb2 {[%emt 0:03:44]} Bf8 {[%emt 0:11:25]} 17. Qe2 {[%emt 0:01:51]} Bg7 {[%emt 0:04:38]} 18. Rfd1 {[%emt 0:01:13]} Qc7 {[%emt 0:00:30]} 19. e5 {[%emt 0:01:45]} Ne7 {[%emt 0:03:55]} 20. Ba3 {[%emt 0:06:41]} Nbd5 {[%emt 0:00:50]} 21. Bd6 {[%emt 0:00:37]} Qb6 {[%emt 0:02:33]} 22. Rdc1 {[%emt 0:04:30]} Bh6 {[%emt 0:06:21]} 23. Rc2 {[%emt 0:01:16]} c3 {[%emt 0:03:37]} 24. b4 {[%emt 0:01:15]} Nf5 {[%emt 0:01:04]} 25. Bc5 {[%emt 0:02:12]} Rxc5 {[%emt 0:02:58]} 26. bxc5 {[%emt 0:00:02]} Qxc5 {[%emt 0:00:12]} 27. Qe4 {[%emt 0:04:57]} Nb4 {[%emt 0:05:41]} 28. Re2 {[%emt 0:00:43]} c2 {[%emt 0:03:16]} 29. Qa8+ {[%emt 0:01:56]} Ke7 {[%emt 0:00:06]} 30. Qxg8 {[%emt 0:00:03]} Nd4 {[%emt 0:02:56]} 31. Rxc2 {[%emt 0:04:57]} Ndxc2 {[%emt 0:00:27]} 32. Rd1 {[%emt 0:00:21]} Nd5 {[%emt 0:01:12]} 33. Ng5 {[%emt 0:00:56]} Bxg5 {[%emt 0:00:47]} 34. Qxg5+ {[%emt 0:00:01]} Kf8 {[%emt 0:00:33]} 35. Bxd5 {[%emt 0:00:10]} exd5 {[%emt 0:00:07]} 36. Qd8+ {[%emt 0:00:19]} Kg7 {[%emt 0:00:03]} 37. Rxd5 {[%emt 0:00:33]} Qc6 {[%emt 0:00:47]} 38. Rd6 {[%emt 0:00:40]} 1-0

[Event "Satka Autumn 2019"]
[Site "Satka"]
[Date "2019.09.21"]
[Round "3.1"]
[White "Guseva, Marina"]
[Black "Petrukhina, Olga"]
[Result "1-0"]
[ECO "D31"]
[WhiteElo "2374"]
[BlackElo "2192"]
[Annotator "NA"]
[PlyCount "69"]
[EventDate "2019.09.19"]
[EventType "swiss"]
[EventCountry "RUS"]
[SourceTitle "playchess.com"]
[Source "ChessBase"]
[SourceQuality "1"]
[TimeControl "5400+30"]

1. d4 {[%emt 0:00:00]} d5 {[%emt 0:00:00]} 2. c4 {[%emt 0:00:00]} e6 {[%emt 0:00:00]} 3. Nc3 {[%emt 0:00:00]} Be7 {[%emt 0:00:00]} 4. cxd5 {[%emt 0:00:00]} exd5 {[%emt 0:00:00]} 5. Bf4 {[%emt 0:00:00]} Nf6 {[%emt 0:00:07]} 6. Qc2 {[%emt 0:00:08]} c6 {[%emt 0:00:12]} 7. h3 {[%emt 0:00:30]} Na6 {[%emt 0:05:02]} 8. a3 {[%emt 0:01:14]} Nc7 {[%emt 0:00:38]} 9. e3 {[%emt 0:00:13]} Ne6 {[%emt 0:00:25]} 10. Be5 {[%emt 0:01:05]} Bd6 {[%emt 0:09:13]} 11. Nf3 {[%emt 0:02:03]} Bxe5 {[%emt 0:01:24]} 12. Nxe5 {[%emt 0:00:13]} Nd7 {[%emt 0:02:28]} 13. Nf3 {[%emt 0:02:36]} Ng5 {[%emt 0:06:18]} 14. Nd2 {[%emt 0:01:36]} Qf6 {[%emt 0:09:09]} 15. Bd3 {[%emt 0:01:02]} Nb6 {[%emt 0:03:36]} 16. f4 {[%emt 0:10:56]} Ne6 {[%emt 0:00:15]} 17. O-O {[%emt 0:00:07]} a5 {[%emt 0:11:03]} 18. Rae1 {[%emt 0:05:30]} h6 {[%emt 0:09:28]} 19. Nf3 {[%emt 0:16:22]} O-O {[%emt 0:00:50]} 20. Ne5 {[%emt 0:03:12]} Rd8 {[%emt 0:14:52]} 21. Ng4 {[%emt 0:12:00]} Qh4 {[%emt 0:00:42]} 22. f5 {[%emt 0:00:13]} Nf8 {[%emt 0:04:34]} 23. Qe2 {[%emt 0:01:30]} Nbd7 {[%emt 0:03:17]} 24. Rf4 {[%emt 0:02:21]} Nf6 {[%emt 0:01:35]} 25. Ne5 {[%emt 0:02:11]} Qh5 {[%emt 0:06:15]} 26. Nf3 {[%emt 0:24:03]} Ne4 {[%emt 0:00:31]} 27. Nxe4 {[%emt 0:05:02]} dxe4 {[%emt 0:00:01]} 28. Bxe4 {[%emt 0:00:16]} f6 {[%emt 0:00:04]} 29. Bd3 {[%emt 0:00:58]} c5 {[%emt 0:01:40]} 30. dxc5 {[%emt 0:00:23]} Nd7 {[%emt 0:00:08]} 31. Rd4 {[%emt 0:00:27]} Kh8 {[%emt 0:01:08]} 32. Qd1 {[%emt 0:04:44]} Rf8 {[%emt 0:01:04]} 33. Nh4 {[%emt 0:00:22]} Qxd1 {[%emt 0:00:34]} 34. Ng6+ {[%emt 0:00:04]} Kg8 {[%emt 0:00:04]} 35. Bc4+ {[%emt 0:00:08]} 1-0

[Event "Satka Autumn 2019"]
[Site "Satka"]
[Date "2019.09.21"]
[Round "3.2"]
[White "Makarenko, Alexandra"]
[Black "Charochkina, Daria"]
[Result "0-1"]
[ECO "B41"]
[WhiteElo "2169"]
[BlackElo "2360"]
[Annotator "NA"]
[PlyCount "82"]
[EventDate "2019.09.19"]
[EventType "swiss"]
[EventCountry "RUS"]
[SourceTitle "playchess.com"]
[Source "ChessBase"]
[SourceQuality "1"]
[TimeControl "5400+30"]

1. e4 {[%emt 0:03:58]} c5 {[%emt 0:00:33]} 2. Nf3 {[%emt 0:01:57]} e6 {[%emt 0:00:06]} 3. d4 {[%emt 0:00:03]} cxd4 {[%emt 0:00:04]} 4. Nxd4 {[%emt 0:00:02]} a6 {[%emt 0:00:05]} 5. g3 {[%emt 0:01:22]} d5 {[%emt 0:01:06]} 6. exd5 {[%emt 0:11:13]} Qxd5 {[%emt 0:00:23]} 7. Nf3 {[%emt 0:00:20]} Qxd1+ {[%emt 0:01:43]} 8. Kxd1 {[%emt 0:00:04]} b5 {[%emt 0:00:54]} 9. Bd3 {[%emt 0:07:47]} Bb7 {[%emt 0:01:04]} 10. Nbd2 {[%emt 0:03:03]} Nf6 {[%emt 0:13:42]} 11. Re1 {[%emt 0:03:39]} Nbd7 {[%emt 0:09:14]} 12. Ne4 {[%emt 0:10:59]} Nc5 {[%emt 0:01:18]} 13. Nxf6+ {[%emt 0:01:27]} gxf6 {[%emt 0:00:06]} 14. Ke2 {[%emt 0:01:59]} Nxd3 {[%emt 0:12:16]} 15. cxd3 {[%emt 0:00:12]} Rc8 {[%emt 0:00:07]} 16. Nd4 {[%emt 0:08:37]} e5 {[%emt 0:01:54]} 17. Kf1 {[%emt 0:15:36]} Kd7 {[%emt 0:10:02]} 18. Nf5 {[%emt 0:09:02]} Bb4 {[%emt 0:00:10]} 19. Re3 {[%emt 0:01:06]} Rc2 {[%emt 0:09:57]} 20. a3 {[%emt 0:01:31]} Bd2 {[%emt 0:00:38]} 21. Bxd2 {[%emt 0:02:21]} Rxd2 {[%emt 0:00:05]} 22. Re2 {[%emt 0:04:39]} Rxd3 {[%emt 0:02:06]} 23. Rc1 {[%emt 0:00:08]} Rc8 {[%emt 0:07:19]} 24. Rxc8 {[%emt 0:01:32]} Bxc8 {[%emt 0:00:04]} 25. Rc2 {[%emt 0:00:26]} Bb7 {[%emt 0:00:56]} 26. Ke2 {[%emt 0:02:45]} Be4 {[%emt 0:00:36]} 27. Nh6 {[%emt 0:00:46]} Rb3 {[%emt 0:01:08]} 28. Rd2+ {[%emt 0:05:29]} Ke6 {[%emt 0:00:14]} 29. Ke1 {[%emt 0:00:36]} f5 {[%emt 0:00:37]} 30. Kd1 {[%emt 0:00:50]} f4 {[%emt 0:08:02]} 31. gxf4 {[%emt 0:01:28]} exf4 {[%emt 0:00:29]} 32. Re2 {[%emt 0:00:27]} f5 {[%emt 0:01:00]} 33. Kc1 {[%emt 0:00:32]} Rh3 {[%emt 0:05:53]} 34. Ng4 {[%emt 0:00:10]} fxg4 {[%emt 0:00:52]} 35. Rxe4+ {[%emt 0:00:05]} Kf5 {[%emt 0:00:03]} 36. Re7 {[%emt 0:00:56]} Rxh2 {[%emt 0:00:10]} 37. Ra7 {[%emt 0:00:31]} g3 {[%emt 0:00:37]} 38. fxg3 {[%emt 0:00:43]} fxg3 {[%emt 0:00:05]} 39. Rf7+ {[%emt 0:00:17]} Kg6 {[%emt 0:00:53]} 40. Rf3 {[%emt 0:00:00]} g2 {[%emt 0:00:00]} 41. Rg3+ {[%emt 0:00:00]} Kf5 0-1

[Event "Satka Autumn 2019"]
[Site "Satka"]
[Date "2019.09.21"]
[Round "3.3"]
[White "Borisova, Ekaterina"]
[Black "Loskutova, Viktoriya"]
[Result "1/2-1/2"]
[ECO "C11"]
[WhiteElo "2307"]
[BlackElo "2162"]
[Annotator "NA"]
[PlyCount "91"]
[EventDate "2019.09.19"]
[EventType "swiss"]
[EventCountry "RUS"]
[SourceTitle "playchess.com"]
[Source "ChessBase"]
[SourceQuality "1"]
[TimeControl "5400+30"]

1. e4 {[%emt 0:00:00]} e6 {[%emt 0:00:03]} 2. d4 {[%emt 0:00:00]} d5 {[%emt 0:00:04]} 3. Nc3 {[%emt 0:00:00]} Nf6 {[%emt 0:00:05]} 4. Bg5 {[%emt 0:00:00]} dxe4 {[%emt 0:00:18]} 5. Nxe4 {[%emt 0:00:27]} Nbd7 {[%emt 0:00:39]} 6. Nf3 {[%emt 0:02:27]} h6 {[%emt 0:04:11]} 7. Nxf6+ {[%emt 0:03:25]} Nxf6 {[%emt 0:00:10]} 8. Be3 {[%emt 0:00:05]} Be7 {[%emt 0:06:43]} 9. Bd3 {[%emt 0:00:56]} Nd5 {[%emt 0:13:31]} 10. Qd2 {[%emt 0:04:40]} Nxe3 {[%emt 0:01:57]} 11. Qxe3 {[%emt 0:02:37]} c5 {[%emt 0:04:38]} 12. O-O-O {[%emt 0:18:21]} Qb6 {[%emt 0:10:30]} 13. dxc5 {[%emt 0:04:46]} Qxc5 {[%emt 0:06:30]} 14. Qe2 {[%emt 0:00:31]} Bf6 {[%emt 0:10:16]} 15. Rhe1 {[%emt 0:14:57]} Bd7 {[%emt 0:06:18]} 16. Nd2 {[%emt 0:00:17]} Bc6 {[%emt 0:08:22]} 17. Ne4 {[%emt 0:10:02]} Bxe4 {[%emt 0:00:15]} 18. Bxe4 {[%emt 0:00:05]} Qb6 {[%emt 0:05:45]} 19. c3 {[%emt 0:03:40]} Ke7 {[%emt 0:05:19]} 20. f4 {[%emt 0:02:24]} Rhd8 {[%emt 0:03:24]} 21. f5 {[%emt 0:01:49]} Rxd1+ {[%emt 0:01:02]} 22. Rxd1 {[%emt 0:00:23]} Rd8 {[%emt 0:02:24]} 23. Rxd8 {[%emt 0:03:45]} Kxd8 {[%emt 0:00:06]} 24. Qf3 {[%emt 0:00:57]} Kc7 {[%emt 0:01:48]} 25. fxe6 {[%emt 0:00:51]} fxe6 {[%emt 0:01:06]} 26. Kc2 {[%emt 0:01:53]} Qb5 {[%emt 0:01:20]} 27. h3 {[%emt 0:05:34]} b6 {[%emt 0:00:56]} 28. g4 {[%emt 0:01:09]} Qa4+ {[%emt 0:00:43]} 29. Kb1 {[%emt 0:00:13]} Qd7 {[%emt 0:00:17]} 30. a3 {[%emt 0:01:34]} Kd8 {[%emt 0:00:48]} 31. Bc2 {[%emt 0:00:34]} Qd5 {[%emt 0:00:48]} 32. Qe2 {[%emt 0:01:01]} a5 {[%emt 0:04:14]} 33. Bd3 {[%emt 0:02:34]} e5 {[%emt 0:01:06]} 34. Be4 {[%emt 0:00:35]} Qc5 {[%emt 0:00:28]} 35. Qa6 {[%emt 0:01:00]} Qc7 {[%emt 0:00:41]} 36. Kc2 {[%emt 0:03:05]} Ke7 {[%emt 0:00:25]} 37. b4 {[%emt 0:00:44]} axb4 {[%emt 0:00:16]} 38. axb4 {[%emt 0:00:03]} Bg5 {[%emt 0:00:54]} 39. c4 {[%emt 0:02:21]} Be3 {[%emt 0:00:27]} 40. Kd3 {[%emt 0:00:00]} Bf4 {[%emt 0:00:00]} 41. Qb5 {[%emt 0:00:00]} Qa7 {[%emt 0:00:00]} 42. Bf5 {[%emt 0:00:00]} g6 {[%emt 0:00:00]} 43. Bxg6 {[%emt 0:00:00]} Qa3+ {[%emt 0:00:00]} 44. Kc2 {[%emt 0:00:00]} Qa2+ {[%emt 0:00:00]} 45. Kc3 {[%emt 0:00:00]} Qa3+ {[%emt 0:00:00]} 46. Kc2 {[%emt 0:00:00]} 1/2-1/2

[Event "Satka Autumn 2019"]
[Site "Satka"]
[Date "2019.09.21"]
[Round "3.4"]
[White "Bykova, Anastasia"]
[Black "Mar, Karmen"]
[Result "1-0"]
[ECO "D17"]
[WhiteElo "2259"]
[BlackElo "2026"]
[Annotator "NA"]
[PlyCount "93"]
[EventDate "2019.09.19"]
[EventType "swiss"]
[EventCountry "RUS"]
[SourceTitle "playchess.com"]
[Source "ChessBase"]
[SourceQuality "1"]
[TimeControl "5400+30"]

1. d4 {[%emt 0:00:00]} d5 {[%emt 0:00:00]} 2. c4 {[%emt 0:00:00]} c6 {[%emt 0:00:00]} 3. Nf3 {[%emt 0:00:00]} Nf6 {[%emt 0:00:07]} 4. Nc3 {[%emt 0:00:00]} dxc4 {[%emt 0:00:40]} 5. a4 {[%emt 0:00:05]} Bf5 {[%emt 0:00:07]} 6. Nh4 {[%emt 0:00:05]} Bc8 {[%emt 0:00:33]} 7. Nf3 {[%emt 0:00:06]} Bf5 {[%emt 0:00:05]} 8. Ne5 {[%emt 0:00:43]} Nbd7 {[%emt 0:02:29]} 9. Nxc4 {[%emt 0:00:07]} Nb6 {[%emt 0:00:05]} 10. Ne5 {[%emt 0:00:05]} a5 {[%emt 0:00:18]} 11. e3 {[%emt 0:01:14]} e6 {[%emt 0:01:50]} 12. g4 {[%emt 0:00:25]} Bg6 {[%emt 0:12:41]} 13. h4 {[%emt 0:00:05]} Ne4 {[%emt 0:17:53]} 14. h5 {[%emt 0:00:54]} Nxc3 {[%emt 0:00:37]} 15. bxc3 {[%emt 0:00:06]} Be4 {[%emt 0:00:25]} 16. f3 {[%emt 0:00:16]} f6 {[%emt 0:00:51]} 17. fxe4 {[%emt 0:01:58]} fxe5 {[%emt 0:03:36]} 18. Qb3 {[%emt 0:00:48]} Bd6 {[%emt 0:17:11]} 19. Qxe6+ {[%emt 0:14:21]} Qe7 {[%emt 0:00:31]} 20. Qxe7+ {[%emt 0:01:58]} Kxe7 {[%emt 0:00:34]} 21. Bd3 {[%emt 0:03:35]} h6 {[%emt 0:08:54]} 22. Ke2 {[%emt 0:11:50]} Rad8 {[%emt 0:08:10]} 23. Bd2 {[%emt 0:02:58]} Bc7 {[%emt 0:01:24]} 24. Bc2 {[%emt 0:15:21]} Rhf8 {[%emt 0:07:47]} 25. Be1 {[%emt 0:04:05]} Rde8 {[%emt 0:02:36]} 26. Bh4+ {[%emt 0:00:20]} Kd7 {[%emt 0:00:24]} 27. Rhf1 {[%emt 0:02:02]} Kc8 {[%emt 0:04:19]} 28. Rf5 {[%emt 0:04:25]} Nc4 {[%emt 0:04:54]} 29. Raf1 {[%emt 0:02:27]} Rxf5 {[%emt 0:01:50]} 30. gxf5 {[%emt 0:03:44]} Bd6 {[%emt 0:00:31]} 31. Bb3 {[%emt 0:03:26]} Nb6 {[%emt 0:01:22]} 32. Rg1 {[%emt 0:03:14]} exd4 {[%emt 0:01:11]} 33. Be6+ {[%emt 0:00:05]} Kb8 {[%emt 0:00:12]} 34. exd4 {[%emt 0:02:32]} Nxa4 {[%emt 0:01:03]} 35. Kd3 {[%emt 0:00:16]} Nb6 {[%emt 0:01:16]} 36. Rxg7 {[%emt 0:00:13]} a4 {[%emt 0:00:24]} 37. e5 {[%emt 0:02:39]} Bf8 {[%emt 0:00:21]} 38. Rg8 {[%emt 0:00:15]} a3 {[%emt 0:00:33]} 39. Ba2 {[%emt 0:05:51]} Kc7 {[%emt 0:00:45]} 40. e6 {[%emt 0:00:00]} Nd5 {[%emt 0:00:00]} 41. e7 {[%emt 0:00:00]} Rxe7 {[%emt 0:00:00]} 42. Bxd5 {[%emt 0:00:00]} cxd5 {[%emt 0:00:00]} 43. Rxf8 {[%emt 0:00:00]} Rg7 {[%emt 0:00:00]} 44. Ra8 {[%emt 0:00:00]} Rg4 {[%emt 0:00:00]} 45. Be7 {[%emt 0:00:00]} Rg3+ {[%emt 0:00:00]} 46. Kc2 {[%emt 0:00:00]} Kd7 {[%emt 0:00:00]} 47. f6 {[%emt 0:00:00]} 1-0